bitfinex-derivatives/quotes_ETHF0:USTF0_20260121
["timestamp","ask_amount","ask_price","bid_price","bid_amount"]
[1768994229722,1.21978262,2969.8,2968.7,0.15028451]
[1768994230028,0.30730194,2969.7,2968.7,0.15028451]
[1768994230227,1.11062069,2970.0,2968.7,0.15028451]
[1768994230418,1.21957855,2969.9,2968.7,0.15028451]
[1768994230620,1.21957855,2969.8,2968.7,0.15028451]
[1768994230818,1.11062069,2970.0,2968.7,0.15028451]
[1768994231021,1.21959365,2969.9,2968.7,0.15028451]
[1768994231228,1.21955883,2969.8,2968.7,0.15028451]
[1768994231441,1.11062069,2970.0,2968.7,0.15028451]
[1768994231733,1.21941482,2969.9,2968.7,0.15028451]
[1768994231929,1.21941482,2969.8,2968.7,0.15028451]
[1768994232125,1.11062069,2970.0,2968.7,0.15028451]
[1768994232333,1.21993507,2969.9,2968.7,0.15028451]
[1768994232528,1.21993507,2969.8,2968.7,0.15028451]
[1768994232724,1.11062069,2970.0,2968.7,0.15028451]
[1768994232936,1.21985725,2969.9,2968.7,0.15028451]
[1768994233232,1.21985725,2969.8,2968.7,0.15028451]
[1768994233435,1.11062069,2970.0,2968.7,0.15028451]
[1768994233633,1.2197438,2969.9,2968.7,0.15028451]
[1768994233936,0.13971286,2970.1,2968.8,1.11062069]
[1768994233937,1.2197438,2969.8,2968.8,1.11062069]
[1768994234128,1.11062069,2970.3,2968.9,0.15028451]
[1768994234328,1.21969291,2970.2,2968.9,0.15028451]
[1768994234629,1.21969291,2970.1,2968.9,0.15028451]
[1768994234833,1.21969291,2970.0,2969.1,1.11062069]
[1768994235137,1.21969291,2969.9,2969.1,1.11062069]
[1768994235335,0.30711035,2969.8,2969.1,1.11062069]
[1768994235536,0.13971286,2970.5,2969.1,1.25604528]
[1768994235835,1.21948351,2970.4,2969.1,1.25604528]
[1768994236034,1.21948351,2970.3,2969.1,1.25604528]
[1768994236228,1.21948351,2970.2,2969.1,1.25604528]
[1768994236540,1.21948351,2970.1,2969.1,1.25604528]
[1768994236729,1.21948351,2970.0,2969.1,1.25604528]
[1768994236929,1.21948351,2969.9,2969.1,1.25604528]
[1768994237236,0.13971286,2970.5,2969.1,1.25604528]
[1768994237433,1.21887199,2970.4,2969.1,1.25604528]
[1768994237639,1.21887199,2970.3,2969.1,1.25604528]
[1768994237937,0.13971286,2970.5,2969.1,1.25604528]
[1768994238129,1.2188658,2970.4,2969.1,1.25604528]
[1768994238328,0.3069056,2970.3,2969.1,1.25604528]
[1768994238530,0.13971286,2970.5,2969.1,1.25604528]
[1768994238731,0.91170112,2970.4,2969.2,0.14542459]
[1768994238934,0.13971286,2970.5,2969.2,0.14542459]
[1768994239129,0.9117007,2970.4,2969.2,0.14542459]
[1768994239330,2.32920405,2970.3,2968.9,1.11062069]
[1768994239531,1.2488147,2970.3,2968.9,1.11062069]
[1768994240127,1.2488147,2970.3,2968.9,1.25604528]
[1768994240341,0.00505825,2969.9,2968.9,1.25604528]
[1768994240838,0.00505825,2969.9,2968.9,0.14542459]
[1768994241537,0.00505825,2969.9,2968.4,1.11045548]
[1768994241538,0.00505825,2969.9,2968.6,0.14542459]
[1768994242535,0.14325226,2969.9,2968.6,0.14542459]
[1768994242741,0.30677919,2969.8,2968.6,0.14542459]
[1768994242941,0.14325226,2969.9,2968.6,0.14542459]
[1768994243442,0.30679054,2969.8,2968.6,0.14542459]
[1768994243743,0.14325226,2969.9,2968.6,0.14542459]
[1768994243944,0.30679025,2969.8,2968.6,0.14542459]
[1768994244146,0.14325226,2969.9,2968.6,0.14542459]
[1768994244343,0.30681252,2969.8,2968.6,0.14542459]
[1768994244534,0.14325226,2969.9,2968.6,0.14542459]
[1768994244738,0.30681126,2969.8,2968.6,0.14542459]
[1768994244939,0.14325226,2969.9,2968.6,0.14542459]
[1768994245138,0.30681775,2969.8,2968.6,0.14542459]
[1768994245349,0.14325226,2969.9,2968.6,0.14542459]
[1768994245544,0.00505825,2969.9,2968.8,0.14542459]
[1768994261357,0.00293628,2970.6,2968.8,0.14542459]
[1768994261658,1.2108182,2970.5,2968.8,0.14542459]
[1768994261860,0.00293628,2970.6,2969.2,0.14542459]
[1768994262256,0.00293628,2970.6,2969.3,0.14542459]
[1768994263262,0.00293628,2970.6,2969.4,0.14542459]
[1768994263656,0.00293628,2970.6,2969.8,0.14542459]
[1768994274966,0.2676722,2971.4,2969.8,0.14542459]
[1768994275168,1.20863329,2971.3,2969.8,0.14542459]
[1768994275475,1.20863329,2971.2,2969.8,0.14542459]
[1768994275667,0.27351077,2971.4,2969.8,0.14542459]
[1768994275975,1.20888701,2971.3,2969.8,0.14542459]
[1768994276166,1.20888701,2971.2,2969.8,0.14542459]
[1768994276367,0.00371399,2971.4,2969.8,0.14542459]
[1768994276562,1.20882436,2971.3,2969.8,0.14542459]
[1768994276774,1.20882436,2971.2,2969.8,0.14542459]
[1768994276971,0.00371399,2971.4,2969.8,0.14542459]
[1768994277169,1.20882558,2971.3,2969.8,0.14542459]
[1768994277367,1.20882558,2971.2,2969.8,0.14542459]
[1768994277566,0.26781576,2971.4,2969.8,0.14542459]
[1768994277769,1.20880218,2971.3,2969.8,0.14542459]
[1768994277973,1.20880218,2971.2,2969.8,0.14542459]
[1768994278173,0.26781576,2971.4,2969.8,0.14542459]
[1768994278371,1.20881071,2971.3,2969.8,0.14542459]
[1768994278568,1.20881071,2971.2,2969.8,0.14542459]
[1768994278769,0.26781576,2971.4,2969.8,0.14542459]
[1768994278971,1.2088341,2971.3,2969.8,0.14542459]
[1768994279173,1.2088341,2971.2,2969.8,0.14542459]
[1768994279374,0.26781576,2971.4,2969.8,0.14542459]
[1768994279576,1.20886099,2971.3,2969.8,0.14542459]
[1768994279764,1.20886099,2971.2,2969.8,0.14542459]
[1768994279969,0.30647707,2971.1,2969.8,0.14542459]
[1768994280170,0.13593462,2971.3,2969.8,0.14542459]
[1768994280370,1.20888001,2971.2,2969.8,0.14542459]
[1768994280575,1.34487794,2971.1,2969.7,0.00505825]
[1768994280775,0.13593462,2971.1,2969.7,0.00505825]
[1768994281469,0.13593462,2970.9,2969.7,0.00505825]
[1768994281973,0.30655132,2970.8,2969.7,0.00505825]
[1768994282174,0.13593462,2970.9,2969.7,0.00505825]
[1768994282376,0.3065898,2970.8,2969.7,0.00505825]
[1768994282575,0.13593462,2970.9,2969.7,0.00505825]
[1768994282776,0.30659713,2970.8,2969.7,0.00505825]
[1768994282979,0.13593462,2970.9,2969.7,0.00505825]
[1768994283177,0.30659713,2970.8,2969.7,0.00505825]
[1768994283379,0.13593462,2970.9,2969.7,0.00505825]
[1768994283579,0.30664104,2970.8,2969.7,0.00505825]
[1768994283779,0.13593462,2970.9,2969.7,0.00505825]
[1768994284076,0.30664104,2970.8,2969.7,0.00505825]
[1768994284279,0.13593462,2970.9,2969.7,0.00505825]
[1768994284480,1.34562746,2970.8,2969.7,0.00505825]
[1768994284677,0.13593462,2970.8,2969.7,0.00505825]
[1768994286080,0.3068051,2970.7,2969.7,0.00505825]
[1768994286272,0.13593462,2970.8,2969.7,0.00505825]
[1768994286472,0.44274033,2970.7,2969.7,0.00505825]
[1768994286678,0.13593462,2970.7,2969.7,0.00505825]
[1768994288079,0.30693276,2970.6,2969.7,0.00505825]
[1768994288283,0.13593462,2970.7,2969.7,0.00505825]
[1768994288479,0.30693754,2970.6,2969.7,0.00505825]
[1768994288679,0.13593462,2970.7,2969.7,0.00505825]
[1768994288880,0.30693752,2970.6,2969.7,0.00505825]
[1768994289081,0.13593462,2970.7,2969.7,0.00505825]
[1768994289279,0.30701936,2970.6,2969.7,0.00505825]
[1768994289476,0.13593462,2970.7,2969.7,0.00505825]
[1768994289769,1.21096666,2970.6,2969.7,0.00505825]
[1768994289973,0.13593462,2970.7,2969.7,0.00505825]
[1768994290170,1.21096666,2970.6,2969.7,0.00505825]
[1768994290383,0.13593462,2970.7,2969.7,0.00505825]
[1768994290584,1.21130751,2970.6,2969.7,0.00505825]
[1768994290785,0.13593462,2970.7,2969.7,0.00505825]
[1768994290980,1.21130751,2970.6,2969.7,0.00505825]
[1768994291178,0.30721052,2970.5,2969.7,0.00505825]
[1768994291388,0.13593462,2970.7,2969.7,0.00505825]
[1768994291590,1.21172362,2970.6,2969.7,0.00505825]
[1768994291778,0.30721052,2970.5,2969.7,0.00505825]
[1768994291982,0.13593462,2970.7,2969.7,0.00505825]
[1768994292286,1.21272383,2970.6,2969.7,0.00505825]
[1768994292484,0.13593462,2970.7,2969.7,0.00505825]
[1768994292685,1.21266129,2970.6,2969.7,0.00505825]
[1768994292886,0.13593462,2970.7,2969.7,0.00505825]
[1768994293084,1.21266129,2970.6,2969.7,0.00505825]
[1768994293287,0.13593462,2970.7,2969.7,0.00505825]
[1768994293489,1.21259579,2970.6,2969.7,0.00505825]
[1768994293690,0.13593462,2970.7,2969.7,0.00505825]
[1768994293888,1.21259579,2970.6,2969.7,0.00505825]
[1768994294088,0.13593462,2970.7,2969.7,0.00505825]
[1768994294387,1.21256903,2970.6,2969.7,0.00505825]
[1768994294591,0.13593462,2970.7,2969.7,0.00505825]
[1768994294786,1.21256279,2970.6,2969.7,0.00505825]
[1768994295089,0.13593462,2970.7,2969.7,0.00505825]
[1768994295290,1.21251834,2970.6,2969.7,0.00505825]
[1768994295489,0.13593462,2970.7,2969.7,0.00505825]
[1768994295789,1.21251539,2970.6,2969.7,0.00505825]
[1768994295998,0.13593462,2970.7,2969.7,0.00505825]
[1768994296181,1.3505243,2970.6,2969.7,0.00505825]
[1768994296387,0.13800891,2970.4,2968.9,0.1500872]
[1768994296593,1.35058715,2970.3,2968.9,0.1500872]
[1768994296795,0.13800891,2970.3,2968.9,0.1500872]
[1768994297493,0.13800891,2970.3,2969.3,0.00504948]
[1768994297791,0.00502902,2970.1,2969.3,0.00504948]
[1768994338715,0.00502902,2970.1,2969.3,0.15438701]
[1768994340022,0.00502902,2970.1,2969.4,1.11032422]
[1768994340219,2.57224339,2971.2,2969.7,1.11032422]
[1768994340421,1.21224722,2971.1,2969.7,1.11032422]
[1768994340621,1.21224722,2971.0,2969.7,1.25966175]
[1768994340822,0.14206382,2971.2,2969.3,3.04684301]
[1768994340823,1.21222946,2970.9,2970.0,1.11032422]
[1768994341024,1.21222946,2970.8,2970.0,1.11460789]
[1768994341222,0.30759291,2970.7,2970.0,1.11460789]
[1768994341422,1.37813998,2971.4,2970.0,1.11460789]
[1768994341616,1.21130055,2971.3,2970.0,1.26394542]
[1768994341817,1.21130055,2971.2,2970.0,1.26394542]
[1768994342018,1.21130055,2971.1,2970.0,1.26394542]
[1768994342219,1.21130055,2971.0,2970.0,1.26394542]
[1768994342421,0.30720754,2970.9,2970.0,1.26394542]
[1768994342622,1.37813998,2971.4,2970.0,1.26394542]
[1768994342815,1.21068112,2971.3,2970.0,1.26394542]
[1768994343022,1.21068112,2971.2,2970.0,1.26394542]
[1768994343223,1.21068112,2971.1,2970.0,1.26394542]
[1768994343427,1.21068112,2971.0,2970.0,1.26394542]
[1768994343627,0.30720881,2970.9,2970.0,1.26394542]
[1768994343926,1.37813998,2971.4,2970.0,1.26394542]
[1768994344115,1.21020454,2971.3,2970.0,1.26394542]
[1768994344314,1.21020454,2971.2,2970.0,1.26394542]
[1768994344614,0.30708289,2971.1,2970.0,1.26394542]
[1768994344818,1.37813998,2971.4,2970.0,1.26394542]
[1768994345123,1.20971026,2971.3,2970.1,0.14933753]
[1768994345331,0.30696064,2971.2,2970.1,0.14933753]
[1768994345630,0.00371399,2971.4,2970.1,0.14933753]
[1768994345927,1.20922729,2971.3,2970.1,0.14933753]
[1768994346130,0.30683305,2971.2,2970.1,0.14933753]
[1768994346331,0.00371399,2971.4,2970.1,0.14933753]
[1768994346521,1.2088827,2971.3,2970.1,0.14933753]
[1768994346818,0.30674665,2971.2,2970.1,0.14933753]
[1768994347019,0.00371399,2971.4,2970.1,0.14933753]
[1768994347221,1.20869813,2971.3,2970.1,0.14933753]
[1768994347428,0.00371399,2971.4,2970.1,0.14933753]
[1768994347627,1.20859048,2971.3,2970.1,0.14933753]
[1768994347830,0.00371399,2971.4,2970.1,0.14933753]
[1768994348129,1.20859048,2971.3,2970.1,0.14933753]
[1768994348330,0.00371399,2971.4,2970.1,0.14933753]
[1768994348632,1.20835246,2971.3,2970.1,0.14933753]
[1768994348834,0.00371399,2971.4,2970.1,0.14933753]
[1768994349132,0.30661445,2971.3,2970.1,0.14933753]
[1768994349326,0.00371399,2971.4,2970.1,0.14933753]
[1768994349525,0.30656014,2971.3,2970.1,0.14933753]
[1768994349722,0.00371399,2971.4,2970.1,0.14933753]
[1768994349922,0.30656239,2971.3,2970.1,0.14933753]
[1768994350124,0.00371399,2971.4,2970.1,0.14933753]
[1768994350324,0.30651982,2971.3,2970.1,0.14933753]
[1768994350527,0.00371399,2971.4,2970.1,0.14933753]
[1768994350724,0.3065199,2971.3,2970.1,0.14933753]
[1768994350928,0.00371399,2971.4,2970.1,0.14933753]
[1768994351241,0.30652891,2971.3,2970.1,0.14933753]
[1768994351537,0.00371399,2971.4,2970.1,0.14933753]
[1768994351728,0.30648911,2971.3,2970.1,0.14933753]
[1768994352034,0.00371399,2971.4,2970.1,0.14933753]
[1768994352237,0.30645978,2971.3,2970.1,0.14933753]
[1768994352426,0.00371399,2971.4,2970.1,0.14933753]
[1768994352724,0.30645978,2971.3,2970.1,0.14933753]
[1768994352925,0.00371399,2971.4,2970.1,0.14933753]
[1768994353124,0.30645933,2971.3,2970.1,0.14933753]
[1768994353325,0.00371399,2971.4,2970.1,0.14933753]
[1768994353526,0.30644119,2971.3,2970.1,0.14933753]
[1768994353726,0.00371399,2971.4,2970.1,0.14933753]
[1768994353922,0.30644119,2971.3,2970.1,0.14933753]
[1768994354228,0.00371399,2971.4,2970.1,0.14933753]
[1768994354522,0.30642032,2971.3,2970.1,0.14933753]
[1768994354722,0.00371399,2971.4,2970.1,0.14933753]
[1768994354925,0.30642511,2971.3,2970.1,0.14933753]
[1768994355228,0.00371399,2971.4,2970.1,0.14933753]
[1768994357337,0.00371399,2971.4,2970.3,1.24844977]
[1768994362235,0.00371399,2971.4,2970.3,0.13812555]
[1768994362441,1.26314463,2971.4,2970.1,1.11032422]
[1768994362940,1.26314463,2971.4,2970.0,0.00428367]
[1768994363332,1.25943064,2971.2,2970.0,0.00428367]
[1768994363541,1.25943064,2971.0,2970.0,0.00428367]
[1768994364941,0.14910642,2971.0,2970.0,0.00428367]
[1768994366348,0.30676181,2970.9,2970.0,0.00428367]
[1768994366545,0.14910642,2971.0,2970.0,0.00428367]
[1768994366746,0.30677874,2970.9,2970.0,0.00428367]
[1768994367049,0.14910642,2971.0,2970.0,0.00428367]
[1768994367245,0.30687107,2970.9,2970.0,0.00428367]
[1768994367445,0.14910642,2971.0,2970.0,0.00428367]
[1768994367646,0.3068755,2970.9,2970.0,0.00428367]
[1768994367944,0.14910642,2971.0,2970.0,0.00428367]
[1768994368143,1.20826825,2970.9,2970.0,0.00428367]
[1768994368450,0.15282041,2971.4,2970.0,0.00428367]
[1768994368652,1.20834463,2971.3,2970.0,0.00428367]
[1768994368945,1.20834463,2971.2,2970.0,0.00428367]
[1768994369143,1.20834461,2971.1,2970.0,0.00428367]
[1768994369451,1.20834461,2971.0,2970.0,0.00428367]
[1768994369643,1.20834461,2970.9,2970.0,0.00428367]
[1768994369951,0.30710166,2970.8,2970.0,0.00428367]
[1768994370149,0.15282041,2971.4,2970.0,0.00428367]
[1768994370447,1.20879662,2971.3,2970.0,0.00428367]
[1768994370647,0.15282041,2971.4,2970.0,0.00428367]
[1768994370648,1.20879662,2971.2,2970.0,0.00428367]
[1768994370844,1.20879662,2971.1,2970.0,0.00428367]
[1768994371044,1.20879662,2971.0,2970.0,0.00428367]
[1768994371244,1.20879662,2970.9,2970.0,0.00428367]
[1768994371449,2.02482041,2971.4,2970.0,0.00428367]
[1768994371645,1.20880077,2971.3,2970.0,0.00428367]
[1768994371844,1.20880077,2971.2,2970.0,0.00428367]
[1768994372044,1.20880077,2971.1,2970.0,0.00428367]
[1768994372344,2.02482041,2971.4,2970.0,0.00428367]
[1768994372345,0.00371399,2971.4,2970.0,0.14240922]
[1768994372649,1.2087058,2971.3,2970.0,0.14240922]
[1768994372947,1.2087058,2971.2,2970.0,0.14240922]
[1768994373149,0.30706835,2971.1,2970.0,0.14240922]
[1768994373351,0.00371399,2971.4,2970.0,0.14240922]
[1768994373552,1.20871718,2971.3,2970.0,0.14240922]
[1768994373847,1.20871718,2971.2,2970.0,0.14240922]
[1768994374047,0.30707027,2971.1,2970.0,0.14240922]
[1768994374255,0.00371399,2971.4,2970.0,0.14240922]
[1768994374441,1.20871443,2971.3,2970.0,0.14240922]
[1768994374641,0.00371399,2971.4,2970.0,0.14240922]
[1768994374838,0.30706123,2971.3,2970.0,0.14240922]
[1768994375042,0.00371399,2971.4,2970.0,0.14240922]
[1768994375241,0.30704952,2971.3,2970.0,0.14240922]
[1768994375447,0.00371399,2971.4,2970.0,0.14240922]
[1768994375644,0.30703322,2971.3,2970.0,0.14240922]
[1768994375839,0.00371399,2971.4,2970.0,0.14240922]
[1768994376040,0.00371399,2971.4,2970.2,0.13812555]
[1768994376950,0.00371399,2971.4,2970.2,3.17991908]
[1768994377147,0.00371399,2971.4,2970.3,0.13812555]
[1768994377353,2.57928599,2972.6,2970.6,0.13812555]
[1768994377653,1.3571116,2972.5,2971.3,0.00504948]
[1768994377859,1.3571116,2972.4,2971.3,0.00504948]
[1768994378153,1.20800518,2972.3,2971.3,0.00504948]
[1768994378456,1.20800518,2972.2,2971.3,0.00504948]
[1768994378648,1.20800518,2972.1,2971.3,0.00504948]
[1768994378850,0.30687539,2972.0,2971.3,0.00504948]
[1768994379147,0.00308341,2972.3,2971.3,0.00504948]
[1768994379356,1.20702223,2972.2,2971.3,0.00504948]
[1768994379547,1.20702223,2972.1,2971.3,0.00504948]
[1768994379750,0.30661441,2972.0,2971.3,0.00504948]
[1768994380054,0.00308341,2972.3,2971.3,0.00504948]
[1768994380258,1.20672809,2972.2,2971.3,0.00504948]
[1768994380455,0.30660904,2972.1,2971.3,0.00504948]
[1768994380650,0.00308341,2972.3,2971.3,0.00504948]
[1768994380852,1.20662656,2972.2,2971.3,0.00504948]
[1768994381149,0.30651404,2972.1,2971.3,0.00504948]
[1768994381350,0.00308341,2972.3,2971.3,0.00504948]
[1768994381556,1.20629376,2972.2,2971.3,0.00504948]
[1768994381755,0.30642614,2972.1,2971.3,0.00504948]
[1768994381955,0.00308341,2972.3,2971.3,0.00504948]
[1768994382154,1.20610981,2972.2,2971.3,0.00504948]
[1768994382351,0.30643009,2972.1,2971.3,0.00504948]
[1768994382550,0.00308341,2972.3,2971.3,0.00504948]
[1768994382743,1.20582731,2972.2,2971.3,0.00504948]
[1768994382946,0.30635566,2972.1,2971.3,0.00504948]
[1768994383153,0.00308341,2972.3,2971.3,0.00504948]
[1768994383342,1.20563518,2972.2,2971.3,0.00504948]
[1768994383545,0.30630587,2972.1,2971.3,0.00504948]
[1768994383748,0.00308341,2972.3,2971.3,0.00504948]
[1768994383944,1.20562512,2972.2,2971.3,0.00504948]
[1768994384144,0.30630306,2972.1,2971.3,0.00504948]
[1768994384349,0.00308341,2972.3,2971.3,0.00504948]
[1768994384550,1.20543929,2972.2,2971.3,0.00504948]
[1768994384855,0.00308341,2972.3,2971.3,0.00504948]
[1768994385057,1.20541503,2972.2,2971.3,0.00504948]
[1768994385258,0.00308341,2972.3,2971.3,0.00504948]
[1768994385464,1.20524171,2972.2,2971.3,0.00504948]
[1768994385758,0.00308341,2972.3,2971.3,0.00504948]
[1768994385950,1.20525077,2972.2,2971.3,0.00504948]
[1768994386146,0.00308341,2972.3,2971.3,0.00504948]
[1768994386351,1.20510489,2972.2,2971.3,0.00504948]
[1768994386552,0.00308341,2972.3,2971.3,0.00504948]
[1768994389365,0.00308341,2972.3,2971.3,0.1449443]
[1768994392767,0.00308341,2972.3,2971.3,0.00504948]
[1768994394463,0.00308341,2972.3,2971.3,0.1449443]
[1768994395360,0.00308341,2972.3,2971.3,0.00504948]
[1768994396763,0.00308341,2972.3,2971.3,0.1449443]
[1768994401479,0.00308341,2972.3,2971.3,0.00504948]
[1768994402172,0.14434664,2972.3,2971.3,0.00504948]
[1768994402683,0.30623654,2972.2,2971.3,0.00504948]
[1768994402881,0.14434664,2972.3,2971.3,0.00504948]
[1768994403180,0.14434664,2972.3,2970.5,0.14265859]
[1768994403181,0.14126323,2972.1,2970.5,0.14265859]
[1768994403377,0.44751704,2972.0,2970.5,0.14265859]
[1768994403582,0.14126323,2971.8,2970.1,3.18445212]
[1768994403783,0.4476476,2971.7,2970.1,0.14265859]
[1768994404085,0.30638437,2971.6,2970.6,0.00504948]
[1768994405483,0.30638437,2971.6,2970.6,0.14770807]
[1768994405690,0.00308341,2972.3,2970.6,0.14770807]
[1768994405984,1.20383761,2972.2,2970.6,0.14770807]
[1768994406184,1.20383761,2972.1,2970.6,0.14770807]
[1768994406383,1.20383761,2972.0,2970.6,0.14770807]
[1768994406586,0.30650422,2971.9,2970.6,0.14770807]
[1768994406791,0.00308341,2972.3,2970.6,0.14770807]
[1768994406987,1.20411474,2972.2,2970.6,0.14770807]
[1768994407181,1.20411474,2972.1,2970.6,0.14770807]
[1768994407385,0.30657497,2972.0,2970.6,0.14770807]
[1768994407684,0.00308341,2972.3,2971.0,0.14265859]
[1768994410685,0.00504948,2971.9,2971.0,0.14265859]
[1768994410986,0.00308341,2972.3,2971.0,0.14265859]
[1768994416993,0.144968,2972.1,2970.6,0.15264371]
[1768994417192,0.144968,2972.1,2970.6,0.00504948]
[1768994417592,0.4515353,2972.0,2970.6,0.00504948]
[1768994417788,0.144968,2972.0,2970.6,0.00504948]
[1768994420895,0.00308341,2972.3,2970.6,0.15264371]
[1768994421099,0.30651311,2972.2,2970.6,0.15264371]
[1768994421299,0.00308341,2972.3,2971.0,0.14759423]
[1768994425106,0.00308341,2972.3,2971.3,1.10869752]
[1768994426501,0.00308341,2972.3,2971.0,1.25629175]
[1768994429100,0.00308341,2972.3,2971.1,0.14759423]
[1768994429305,0.00308341,2972.3,2971.3,1.25629175]
[1768994429611,0.00308341,2972.3,2971.4,0.14759423]
[1768994433304,0.00308341,2972.3,2971.6,1.10869752]
[1768994433503,1.10869752,2973.3,2971.7,0.14759423]
[1768994433697,1.10869752,2973.0,2971.7,0.14759423]
[1768994433902,1.2061703,2972.9,2972.2,0.00504948]
[1768994434100,1.2061703,2972.8,2972.2,0.00504948]
[1768994434303,1.10869752,2973.0,2972.2,0.00504948]
[1768994434304,1.2061703,2972.7,2972.2,0.00504948]
[1768994434499,0.00264766,2972.7,2972.2,0.00769765]
[1768994435207,0.30673444,2972.6,2972.2,0.00769765]
[1768994435409,0.00264766,2972.7,2972.2,0.00769765]
[1768994435607,1.10869752,2973.5,2972.3,1.10869752]
[1768994435809,0.90002583,2973.4,2972.3,1.10869752]
[1768994436004,1.04499383,2973.3,2972.2,0.00769765]
[1768994436204,1.04499383,2973.2,2972.2,0.00769765]
[1768994436405,0.144968,2973.1,2972.2,0.00769765]
[1768994436705,1.10869752,2973.0,2972.2,0.00769765]
[1768994436913,0.144968,2972.9,2972.2,0.00769765]
[1768994437107,0.14741343,2972.9,2972.2,0.00769765]
[1768994437312,0.00244543,2972.9,2972.2,0.00769765]
[1768994437906,0.14741343,2972.9,2972.2,0.00769765]
[1768994441016,0.00244543,2972.9,2972.2,0.00769765]
[1768994446009,0.14148634,2972.9,2972.2,0.00769765]
[1768994448529,0.00244543,2972.9,2972.2,0.00769765]
[1768994450833,0.14148634,2972.9,2972.2,0.00769765]
[1768994451931,0.14148634,2972.9,2971.2,3.04179353]
[1768994452140,0.13904091,2972.7,2971.0,3.04179353]
[1768994452326,0.13904091,2972.7,2970.9,3.04179353]
[1768994452523,0.13904091,2972.7,2971.0,3.10220881]
[1768994452728,0.00244543,2972.9,2971.2,0.06041528]
[1768994453027,0.00244543,2972.9,2971.2,0.06370408]
[1768994453333,0.00244543,2972.9,2971.8,0.00504948]
[1768994458929,0.00244543,2972.9,2971.9,1.1082032]
[1768994460238,0.00244543,2972.9,2972.2,1.1082032]
[1768994460935,0.00504948,2972.8,2971.8,0.00504948]
[1768994462343,0.00504948,2972.8,2971.8,0.06425846]
[1768994467145,0.00504948,2972.8,2971.8,0.00504948]
[1768994480848,0.00504948,2972.8,2972.1,1.1080211]
[1768994484759,0.00504948,2972.8,2971.9,1.1080211]
[1768994486863,0.00504948,2972.8,2971.8,0.00504948]
[1768994488660,0.13850383,2973.4,2971.8,4.15502333]
[1768994488865,1.34502036,2973.3,2971.8,4.15502333]
[1768994489167,1.20651653,2973.2,2971.8,4.15502333]
[1768994489358,0.30497023,2973.1,2971.8,4.15502333]
[1768994489657,0.13850383,2973.3,2971.9,3.04179353]
[1768994489860,0.00408659,2973.1,2971.9,3.04179353]
[1768994490255,0.00408659,2973.1,2972.0,3.04179353]
[1768994490450,0.00408659,2973.1,2971.9,3.04179353]
[1768994490656,0.13850383,2973.3,2972.2,1.10818032]
[1768994490858,0.13850383,2974.1,2972.2,1.10818032]
[1768994491058,0.13850383,2973.9,2972.2,1.10818032]
[1768994491365,0.13850383,2973.7,2972.0,3.04179353]
[1768994491556,0.13850383,2973.5,2972.0,3.04179353]
[1768994491856,0.13850383,2973.3,2972.0,3.04179353]
[1768994492064,0.13850383,2973.3,2971.9,3.04179353]
[1768994492564,0.13850383,2973.3,2971.9,4.14997385]
[1768994493067,0.13850383,2973.3,2972.0,3.04179353]
[1768994493259,0.13850383,2973.3,2971.9,4.14997385]
[1768994494362,0.13850383,2973.3,2971.9,3.04179353]
[1768994494958,0.13850383,2973.1,2971.8,3.04684301]
[1768994495159,0.13850383,2973.1,2971.8,0.00504948]
[1768994497366,0.13850383,2973.1,2971.8,3.04684301]
[1768994497666,0.13850383,2973.1,2971.8,0.00504948]
[1768994513277,0.13850383,2973.1,2971.8,3.04684301]
[1768994513483,0.13850383,2973.1,2971.8,0.00504948]
[1768994514377,0.13850383,2973.1,2971.8,3.04684301]
[1768994515477,0.13850383,2973.1,2971.8,0.00504948]
[1768994515667,0.13850383,2973.1,2971.8,3.04684301]
[1768994517479,0.13850383,2973.1,2971.8,0.00504948]
[1768994520489,0.15045001,2972.9,2971.8,0.00504948]
[1768994528790,0.15045001,2972.7,2971.5,3.04179353]
[1768994528995,0.15045001,2972.7,2971.3,3.04179353]
[1768994529995,0.15045001,2972.7,2971.7,0.00504948]
[1768994532788,0.15045001,2972.7,2971.2,3.04508233]
[1768994533096,1.10818032,2973.0,2971.2,3.04508233]
[1768994533097,0.15045001,2972.5,2971.2,0.0032888]
[1768994534496,0.15045001,2972.5,2971.6,0.00504948]
[1768994536396,0.15045001,2972.5,2971.2,0.0032888]
[1768994536594,0.14367069,2972.2,2971.2,0.0032888]
[1768994537498,0.14367069,2972.2,2971.4,0.00504948]
[1768994538897,0.14367069,2972.2,2971.2,0.0032888]
[1768994539100,0.14367069,2972.1,2970.5,7.30030447]
[1768994539392,0.14367069,2972.1,2970.3,3.04179353]
[1768994539902,0.14367069,2972.1,2970.2,3.04179353]
[1768994540295,0.14367069,2972.1,2970.2,3.04480737]
[1768994543403,0.14367069,2972.1,2970.2,0.00301384]
[1768994545805,0.14367069,2971.9,2970.2,0.00301384]
[1768994549005,0.14367069,2971.8,2970.4,1.10923085]
[1768994551309,0.14367069,2971.8,2971.0,1.10923085]
[1768994551506,0.14367069,2972.2,2971.0,1.10923085]
[1768994554107,0.14367069,2972.2,2971.3,1.10923085]
[1768994554910,0.14367069,2972.2,2971.0,1.10923085]
[1768994559514,0.14367069,2972.0,2970.8,0.00504948]
[1768994568718,0.31596667,2971.8,2970.8,0.00504948]
[1768994568914,0.14754667,2971.8,2970.8,0.00504948]
[1768994569116,0.16844,2971.5,2970.8,0.00504948]
[1768994570917,0.16844,2971.4,2970.8,0.00504948]
[1768994571118,0.17161522,2971.4,2970.8,0.00504948]
[1768994578333,0.31563626,2971.3,2970.8,0.00504948]
[1768994578632,0.14718626,2971.2,2970.8,0.00504948]
[1768994579625,0.14718626,2971.2,2970.5,1.10923085]
[1768994581732,0.14718626,2971.2,2970.7,1.10923085]
[1768994583229,0.31563626,2971.2,2970.7,1.10923085]
[1768994587729,0.16845,2971.2,2970.7,1.10923085]
[1768994587930,0.16845,2971.2,2970.7,4.15102438]
[1768994590637,0.16845,2971.2,2970.7,1.10923085]
[1768994593337,0.16845,2971.2,2970.7,1.11428033]
[1768994595643,0.16845,2971.2,2970.7,4.15607386]
[1768994598244,0.16845,2971.2,2970.7,1.11428033]
[1768994600246,0.16847,2970.9,2970.2,1.11224469]
[1768994600443,0.31058651,2970.8,2970.2,0.00301384]
[1768994600846,0.31058651,2970.8,2970.0,2.677]
[1768994601148,0.31563599,2970.8,2970.0,2.677]
[1768994601848,0.31563599,2970.8,2970.0,2.67972272]
[1768994602146,0.31563599,2970.8,2970.0,0.00272272]
[1768994607855,0.14420094,2970.7,2970.0,0.00272272]
[1768994608153,0.31268094,2970.7,2970.0,0.00272272]
[1768994608355,0.14420094,2970.6,2970.0,0.00272272]
[1768994609855,0.14420094,2970.6,2969.8,1.10923085]
[1768994610053,0.136975,2970.5,2969.8,1.10923085]
[1768994610248,0.305465,2970.5,2969.8,1.10923085]
[1768994610759,0.00504948,2970.8,2969.8,0.00246285]
[1768994610760,0.136975,2970.2,2969.8,0.00246285]
[1768994611356,0.136975,2970.2,2969.4,3.04179353]
[1768994611357,0.136975,2970.2,2969.3,3.04179353]
[1768994611655,0.305485,2970.2,2969.3,3.04179353]
[1768994611849,0.136975,2970.1,2969.3,3.04179353]
[1768994612255,0.136975,2970.1,2969.3,0.00345272]
[1768994613860,0.16851,2970.2,2969.3,0.00345272]